[Event "Swedish Chess Championship 2019: Kadett-SM"]
[Site "Stiga Sports Arena, Arenatorget 1, Eskilstuna, Sweden, Sweden"]
[Date "2019.07.08"]
[Round "1.6"]
[White "Sandvall, Oskar"]
[Black "Lindholm, Gustav"]
[Result "0-1"]
[TimeControl "90 minutes for 40 moves + 30 minutes for the rest of the game + 30 seconds per move from move one"]
[WhiteFideId "1749145"]
[BlackFideId "1736515"]
[WhiteElo "1388"]
[BlackElo "1950"]

1. d4 {[%clk 01:30:57]} {[%emt 00:00:02]} d5 {[%clk 01:30:51]} {[%emt
00:00:09]} 2. c4 {[%clk 01:31:21]} {[%emt 00:00:07]} c6 {[%clk 01:31:13]}
{[%emt 00:00:07]} 3. Nc3 {[%clk 01:31:38]} {[%emt 00:00:13]} Nf6 {[%clk
01:31:31]} {[%emt 00:00:12]} 4. Bg5 {[%clk 01:31:42]} {[%emt 00:00:26]} e6
{[%clk 01:31:08]} {[%emt 00:00:53]} 5. e4 {[%clk 01:31:16]} {[%emt 00:00:57]}
dxe4 {[%clk 01:29:03]} {[%emt 00:02:35]} 6. Nxe4 {[%clk 01:31:19]} {[%emt
00:00:26]} Bb4+ {[%clk 01:26:55]} {[%emt 00:02:38]} 7. Nc3 {[%clk 01:30:00]}
{[%emt 00:01:50]} Bxc3+ {[%clk 01:23:16]} {[%emt 00:04:09]} 8. bxc3 {[%clk
01:29:45]} {[%emt 00:00:45]} Qa5 {[%clk 01:22:45]} {[%emt 00:01:01]} 9. Bd2
{[%clk 01:28:05]} {[%emt 00:02:10]} O-O {[%clk 01:22:15]} {[%emt 00:00:59]} 10.
Nf3 {[%clk 01:22:35]} {[%emt 00:06:00]} Nbd7 {[%clk 01:21:24]} {[%emt
00:01:21]} 11. Bd3 {[%clk 01:19:56]} {[%emt 00:03:10]} e5 {[%clk 01:14:21]}
{[%emt 00:07:33]} 12. Qc2 {[%clk 01:18:36]} {[%emt 00:01:50]} e4 {[%clk
01:11:38]} {[%emt 00:03:12]} 13. Bxe4 {[%clk 01:14:18]} {[%emt 00:04:49]} Re8
{[%clk 01:11:40]} {[%emt 00:00:27]} 14. Ne5 {[%clk 01:13:32]} {[%emt 00:01:16]}
Nxe4 {[%clk 01:10:21]} {[%emt 00:01:49]} 15. Qxe4 {[%clk 01:13:17]} {[%emt
00:00:46]} f6 {[%clk 01:09:36]} {[%emt 00:01:15]} 16. f4 {[%clk 01:05:47]}
{[%emt 00:08:00]} fxe5 {[%clk 01:05:58]} {[%emt 00:04:08]} 17. fxe5 {[%clk
01:06:02]} {[%emt 00:00:15]} Qa6 {[%clk 01:00:56]} {[%emt 00:05:33]} 18. O-O
{[%clk 01:05:10]} {[%emt 00:01:22]} Qxc4 {[%clk 01:00:14]} {[%emt 00:01:12]} 19.
Rae1 {[%clk 01:04:14]} {[%emt 00:01:26]} Nf8 {[%clk 00:57:32]} {[%emt
00:03:11]} 20. Qf3 {[%clk 00:59:51]} {[%emt 00:04:54]} Be6 {[%clk 00:55:32]}
{[%emt 00:02:30]} 21. Re2 {[%clk 00:59:45]} {[%emt 00:00:36]} Ng6 {[%clk
00:55:09]} {[%emt 00:00:53]} 22. Bf4 {[%clk 00:58:41]} {[%emt 00:01:34]} Nxf4
{[%clk 00:55:13]} {[%emt 00:00:26]} 0-1

[Event "Swedish Chess Championship 2019: Kadett-SM"]
[Site "Stiga Sports Arena, Arenatorget 1, Eskilstuna, Sweden, Sweden"]
[Date "2019.07.09"]
[Round "2.1"]
[White "Hall, Alexander"]
[Black "Ivarsson, Sebastian"]
[Result "1/2-1/2"]
[TimeControl "90 minutes for 40 moves + 30 minutes for the rest of the game + 30 seconds per move from move one"]
[WhiteFideId "1738933"]
[BlackFideId "1738593"]
[WhiteElo "1805"]
[BlackElo "2079"]

1. d4 {[%clk 01:30:56]} {[%emt 00:00:03]} Nf6 {[%clk 01:30:41]} {[%emt
00:00:19]} 2. c4 {[%clk 01:31:22]} {[%emt 00:00:05]} g6 {[%clk 01:30:54]}
{[%emt 00:00:17]} 3. Nc3 {[%clk 01:31:46]} {[%emt 00:00:07]} Bg7 {[%clk
01:31:18]} {[%emt 00:00:05]} 4. e4 {[%clk 01:32:00]} {[%emt 00:00:16]} d6
{[%clk 01:31:43]} {[%emt 00:00:06]} 5. Nf3 {[%clk 01:32:17]} {[%emt 00:00:12]}
O-O {[%clk 01:31:25]} {[%emt 00:00:48]} 6. Be2 {[%clk 01:32:36]} {[%emt
00:00:12]} e5 {[%clk 01:31:49]} {[%emt 00:00:06]} 7. dxe5 {[%clk 01:33:00]}
{[%emt 00:00:06]} dxe5 {[%clk 01:31:39]} {[%emt 00:00:40]} 8. Qxd8 {[%clk
01:33:26]} {[%emt 00:00:05]} Rxd8 {[%clk 01:31:35]} {[%emt 00:00:33]} 9. Bg5
{[%clk 01:33:49]} {[%emt 00:00:07]} Re8 {[%clk 01:30:16]} {[%emt 00:01:49]} 10.
Nd5 {[%clk 01:33:53]} {[%emt 00:00:28]} Nxd5 {[%clk 01:29:42]} {[%emt
00:01:03]} 11. cxd5 {[%clk 01:34:17]} {[%emt 00:00:06]} f5 {[%clk 01:18:56]}
{[%emt 00:11:16]} 12. Nd2 {[%clk 01:34:36]} {[%emt 00:00:11]} h6 {[%clk
01:13:11]} {[%emt 00:06:15]} 13. Be3 {[%clk 01:34:59]} {[%emt 00:00:06]} fxe4
{[%clk 01:03:34]} {[%emt 00:10:08]} 14. Nxe4 {[%clk 01:35:11]} {[%emt
00:00:17]} Bf5 {[%clk 01:03:50]} {[%emt 00:00:14]} 15. f3 {[%clk 01:35:23]}
{[%emt 00:00:17]} Rd8 {[%clk 00:53:00]} {[%emt 00:11:21]} 16. g4 {[%clk
01:14:32]} {[%emt 00:21:21]} Bxe4 {[%clk 00:53:19]} {[%emt 00:00:11]} 17. fxe4
{[%clk 01:14:56]} {[%emt 00:00:06]} c6 {[%clk 00:51:15]} {[%emt 00:02:34]} 18.
Bc4 {[%clk 01:13:26]} {[%emt 00:01:58]} Kh7 {[%clk 00:51:34]} {[%emt 00:00:11]}
19. Rc1 {[%clk 01:10:35]} {[%emt 00:03:21]} Nd7 {[%clk 00:42:54]} {[%emt
00:09:11]} 20. dxc6 {[%clk 00:52:30]} {[%emt 00:18:35]} bxc6 {[%clk 00:43:18]}
{[%emt 00:00:06]} 21. Be2 {[%clk 00:49:45]} {[%emt 00:03:14]} Nf6 {[%clk
00:42:04]} {[%emt 00:01:44]} 22. Bf3 {[%clk 00:49:22]} {[%emt 00:00:53]} Rdb8
{[%clk 00:30:01]} {[%emt 00:12:33]} 23. Rc2 {[%clk 00:44:30]} {[%emt 00:05:22]}
Rb4 {[%clk 00:24:08]} {[%emt 00:06:23]} 24. Bc5 {[%clk 00:44:19]} {[%emt
00:00:41]} Rb5 {[%clk 00:24:07]} {[%emt 00:00:31]} 25. Be7 {[%clk 00:31:05]}
{[%emt 00:13:44]} Ng8 {[%clk 00:14:52]} {[%emt 00:09:45]} 26. Ba3 {[%clk
00:25:07]} {[%emt 00:06:28]} Bf8 {[%clk 00:09:29]} {[%emt 00:05:53]} 27. Rxc6
{[%clk 00:24:09]} {[%emt 00:01:28]} Bxa3 {[%clk 00:09:49]} {[%emt 00:00:10]} 28.
bxa3 {[%clk 00:24:30]} {[%emt 00:00:09]} Rf8 {[%clk 00:09:48]} {[%emt
00:00:31]} 29. Rc7+ {[%clk 00:24:10]} {[%emt 00:00:49]} Kh8 {[%clk 00:10:03]}
{[%emt 00:00:14]} 30. O-O {[%clk 00:19:22]} {[%emt 00:05:19]} a5 {[%clk
00:06:06]} {[%emt 00:04:28]} 31. Be2 {[%clk 00:10:27]} {[%emt 00:09:25]} Rxf1+
{[%clk 00:06:27]} {[%emt 00:00:09]} 32. Bxf1 {[%clk 00:10:38]} {[%emt
00:00:19]} Rb2 {[%clk 00:06:37]} {[%emt 00:00:20]} 33. Rc6 {[%clk 00:03:44]}
{[%emt 00:07:25]} Kg7 {[%clk 00:06:06]} {[%emt 00:01:01]} 34. Bc4 {[%clk
00:03:34]} {[%emt 00:00:40]} Nf6 {[%clk 00:06:15]} {[%emt 00:00:20]} 35. Rc7+
{[%clk 00:03:11]} {[%emt 00:00:53]} Kh8 {[%clk 00:06:31]} {[%emt 00:00:12]} 36.
Rf7 {[%clk 00:01:58]} {[%emt 00:01:44]} Nxg4 {[%clk 00:05:40]} {[%emt
00:01:23]} 37. Rf8+ {[%clk 00:02:08]} {[%emt 00:00:20]} Kg7 {[%clk 00:05:58]}
{[%emt 00:00:11]} 38. Rf7+ {[%clk 00:02:14]} {[%emt 00:00:23]} Kh8 {[%clk
00:06:18]} {[%emt 00:00:10]} 39. Rf8+ {[%clk 00:02:39]} {[%emt 00:00:05]} Kg7
{[%clk 00:06:44]} {[%emt 00:00:05]} 40. Rf7+ {[%emt 00:00:07]} 1/2-1/2

[Event "Swedish Chess Championship 2019: Kadett-SM"]
[Site "Stiga Sports Arena, Arenatorget 1, Eskilstuna, Sweden, Sweden"]
[Date "2019.07.09"]
[Round "2.2"]
[White "Nguyen, Gabriel"]
[Black "Bensryd, Hampus"]
[Result "1/2-1/2"]
[TimeControl "90 minutes for 40 moves + 30 minutes for the rest of the game + 30 seconds per move from move one"]
[WhiteFideId "1720791"]
[BlackFideId "1738330"]
[WhiteElo "2035"]
[BlackElo "1938"]

1. d4 {[%clk 01:30:03]} {[%emt 00:00:56]} Nf6 {[%clk 01:30:36]} {[%emt
00:00:24]} 2. Nf3 {[%clk 01:29:32]} {[%emt 00:01:00]} e6 {[%clk 01:29:34]}
{[%emt 00:01:33]} 3. c4 {[%clk 01:26:59]} {[%emt 00:03:03]} b6 {[%clk
01:28:56]} {[%emt 00:01:09]} 4. g3 {[%clk 01:27:22]} {[%emt 00:00:06]} Bb7
{[%clk 01:28:57]} {[%emt 00:00:29]} 5. Bg2 {[%clk 01:27:47]} {[%emt 00:00:05]}
d5 {[%clk 01:24:00]} {[%emt 00:05:27]} 6. O-O {[%clk 01:25:41]} {[%emt
00:02:36]} Be7 {[%clk 01:24:03]} {[%emt 00:00:27]} 7. Nc3 {[%clk 01:19:52]}
{[%emt 00:06:19]} O-O {[%clk 01:23:45]} {[%emt 00:00:48]} 8. Ne5 {[%clk
01:16:42]} {[%emt 00:03:40]} Nbd7 {[%clk 01:20:18]} {[%emt 00:03:57]} 9. Qa4
{[%clk 01:15:00]} {[%emt 00:02:12]} c6 {[%clk 00:59:07]} {[%emt 00:21:40]} 10.
Nxd7 {[%clk 00:44:48]} {[%emt 00:30:43]} Qxd7 {[%clk 00:57:37]} {[%emt
00:02:01]} 11. Bg5 {[%clk 00:40:35]} {[%emt 00:04:42]} Rfd8 {[%clk 00:55:25]}
{[%emt 00:02:42]} 12. Rfd1 {[%clk 00:35:18]} {[%emt 00:05:47]} h6 {[%clk
00:52:52]} {[%emt 00:03:03]} 13. Bf4 {[%clk 00:35:24]} {[%emt 00:00:24]} Bd6
{[%clk 00:50:51]} {[%emt 00:02:31]} 14. Bxd6 {[%clk 00:34:54]} {[%emt
00:01:01]} Qxd6 {[%clk 00:50:09]} {[%emt 00:01:10]} 15. e4 {[%clk 00:31:23]}
{[%emt 00:04:01]} dxe4 {[%clk 00:47:31]} {[%emt 00:03:09]} 16. Nxe4 {[%clk
00:31:48]} {[%emt 00:00:06]} Nxe4 {[%clk 00:46:34]} {[%emt 00:01:26]} 17. Bxe4
{[%clk 00:32:12]} {[%emt 00:00:06]} Qc7 {[%clk 00:42:43]} {[%emt 00:04:21]} 18.
Rac1 {[%clk 00:30:48]} {[%emt 00:01:53]} c5 {[%clk 00:37:11]} {[%emt 00:06:03]}
19. Bxb7 {[%clk 00:25:57]} {[%emt 00:05:21]} 1/2-1/2

[Event "Swedish Chess Championship 2019: Kadett-SM"]
[Site "Stiga Sports Arena, Arenatorget 1, Eskilstuna, Sweden, Sweden"]
[Date "2019.07.09"]
[Round "2.3"]
[White "Joensson, Oscar"]
[Black "Muntean, Victor"]
[Result "1-0"]
[TimeControl "90 minutes for 40 moves + 30 minutes for the rest of the game + 30 seconds per move from move one"]
[WhiteFideId "1729977"]
[BlackFideId "1054414"]
[WhiteElo "1752"]
[BlackElo "1971"]

1. d4 {[%clk 01:30:58]} {[%emt 00:00:01]} Nf6 {[%clk 01:30:52]} {[%emt
00:00:09]} 2. Nf3 {[%clk 01:31:21]} {[%emt 00:00:06]} g6 {[%clk 01:31:11]}
{[%emt 00:00:11]} 3. e3 {[%clk 01:31:38]} {[%emt 00:00:14]} Bg7 {[%clk
01:31:15]} {[%emt 00:00:25]} 4. b3 {[%clk 01:31:58]} {[%emt 00:00:09]} O-O
{[%clk 01:31:24]} {[%emt 00:00:21]} 5. Bb2 {[%clk 01:32:12]} {[%emt 00:00:15]}
d6 {[%clk 01:30:35]} {[%emt 00:01:20]} 6. Be2 {[%clk 01:31:03]} {[%emt
00:01:40]} c5 {[%clk 01:27:57]} {[%emt 00:03:08]} 7. O-O {[%clk 01:25:59]}
{[%emt 00:05:32]} Nfd7 {[%clk 01:22:44]} {[%emt 00:05:44]} 8. Nbd2 {[%clk
01:05:17]} {[%emt 00:21:12]} e5 {[%clk 01:19:56]} {[%emt 00:03:18]} 9. dxe5
{[%clk 01:02:21]} {[%emt 00:03:26]} Nxe5 {[%clk 01:19:54]} {[%emt 00:00:33]} 10.
Nxe5 {[%clk 01:02:46]} {[%emt 00:00:06]} Bxe5 {[%clk 01:19:39]} {[%emt
00:00:44]} 11. Bxe5 {[%clk 01:03:02]} {[%emt 00:00:14]} dxe5 {[%clk 01:20:03]}
{[%emt 00:00:07]} 12. Ne4 {[%clk 00:57:41]} {[%emt 00:05:50]} b6 {[%clk
01:11:10]} {[%emt 00:09:24]} 13. Qxd8 {[%clk 00:52:02]} {[%emt 00:06:08]} Rxd8
{[%clk 01:11:31]} {[%emt 00:00:09]} 14. Nf6+ {[%clk 00:52:22]} {[%emt
00:00:09]} Kg7 {[%clk 01:11:08]} {[%emt 00:00:54]} 15. Bf3 {[%clk 00:52:20]}
{[%emt 00:00:32]} Kxf6 {[%clk 01:11:15]} {[%emt 00:00:24]} 16. Bxa8 {[%clk
00:52:43]} {[%emt 00:00:07]} Rd2 {[%clk 01:11:35]} {[%emt 00:00:10]} 17. Rfd1
{[%clk 00:52:44]} {[%emt 00:00:29]} Rxd1+ {[%clk 01:10:32]} {[%emt 00:01:33]}
18. Rxd1 {[%clk 00:53:07]} {[%emt 00:00:06]} Ke7 {[%clk 01:10:56]} {[%emt
00:00:07]} 19. f4 {[%clk 00:51:47]} {[%emt 00:01:50]} Bf5 {[%clk 01:09:03]}
{[%emt 00:02:23]} 20. c3 {[%clk 00:49:27]} {[%emt 00:02:51]} Nd7 {[%clk
01:06:01]} {[%emt 00:03:32]} 21. Bc6 {[%clk 00:48:26]} {[%emt 00:01:30]} Nb8
{[%clk 01:04:34]} {[%emt 00:01:58]} 22. Bd5 {[%clk 00:48:17]} {[%emt 00:00:38]}
Nd7 {[%clk 01:00:45]} {[%emt 00:04:19]} 23. e4 {[%clk 00:45:50]} {[%emt
00:02:56]} Bg4 {[%clk 01:00:34]} {[%emt 00:00:41]} 24. Rf1 {[%clk 00:45:20]}
{[%emt 00:00:58]} Be2 {[%clk 00:57:00]} {[%emt 00:04:06]} 25. Rf2 {[%clk
00:44:52]} {[%emt 00:00:57]} Bd3 {[%clk 00:56:50]} {[%emt 00:00:41]} 26. Rd2
{[%clk 00:43:28]} {[%emt 00:01:54]} Bb1 {[%clk 00:55:49]} {[%emt 00:01:31]} 27.
g3 {[%clk 00:36:46]} {[%emt 00:07:11]} f6 {[%clk 00:50:44]} {[%emt 00:05:35]}
28. Kf2 {[%clk 00:36:27]} {[%emt 00:00:49]} f5 {[%clk 00:49:58]} {[%emt
00:01:17]} 29. Ke3 {[%clk 00:32:27]} {[%emt 00:04:28]} a5 {[%clk 00:45:56]}
{[%emt 00:04:33]} 30. a3 {[%clk 00:25:38]} {[%emt 00:07:18]} h6 {[%clk
00:37:07]} {[%emt 00:09:19]} 31. b4 {[%clk 00:21:51]} {[%emt 00:04:17]} axb4
{[%clk 00:34:08]} {[%emt 00:03:30]} 32. axb4 {[%clk 00:20:49]} {[%emt
00:01:32]} Nf6 {[%clk 00:32:16]} {[%emt 00:02:22]} 33. fxe5 {[%clk 00:19:18]}
{[%emt 00:01:59]} Ng4+ {[%clk 00:32:34]} {[%emt 00:00:13]} 34. Kf3 {[%clk
00:17:12]} {[%emt 00:02:35]} Nxe5+ {[%clk 00:30:49]} {[%emt 00:02:15]} 35. Kf4
{[%clk 00:16:32]} {[%emt 00:01:09]} Kf6 {[%clk 00:29:18]} {[%emt 00:02:02]} 36.
bxc5 {[%clk 00:12:48]} {[%emt 00:04:13]} bxc5 {[%clk 00:29:33]} {[%emt
00:00:16]} 37. h3 {[%clk 00:12:03]} {[%emt 00:01:14]} Bxe4 {[%clk 00:28:42]}
{[%emt 00:01:21]} 38. Bg8 {[%clk 00:06:17]} {[%emt 00:06:16]} Nd3+ {[%clk
00:21:17]} {[%emt 00:07:56]} 39. Ke3 {[%clk 00:06:32]} {[%emt 00:00:14]} Ne5
{[%clk 00:21:30]} {[%emt 00:00:17]} 40. Rd8 {[%clk 00:05:17]} {[%emt 00:01:44]}
Kg5 {[%clk 00:18:09]} {[%emt 00:03:52]} 41. Rc8 {[%clk 00:04:32]} {[%emt
00:01:15]} c4 {[%clk 00:14:51]} {[%emt 00:03:48]} 42. Bxc4 {[%clk 00:04:29]}
{[%emt 00:00:33]} Bg2 {[%clk 00:14:53]} {[%emt 00:00:28]} 43. h4+ {[%clk
00:04:07]} {[%emt 00:00:52]} Kg4 {[%clk 00:15:15]} {[%emt 00:00:07]} 44. Kf2
{[%clk 00:03:21]} {[%emt 00:01:16]} Bf3 {[%clk 00:12:50]} {[%emt 00:02:56]} 45.
Bf1 {[%clk 00:02:48]} {[%emt 00:01:03]} g5 {[%clk 00:10:48]} {[%emt 00:02:32]}
46. hxg5 {[%clk 00:01:51]} {[%emt 00:01:27]} hxg5 {[%clk 00:11:09]} {[%emt
00:00:09]} 47. Rh8 {[%clk 00:02:02]} {[%emt 00:00:18]} Bg2 {[%clk 00:10:04]}
{[%emt 00:01:37]} 48. Kxg2 {[%clk 00:02:24]} {[%emt 00:00:08]} 1-0

[Event "Swedish Chess Championship 2019: Kadett-SM"]
[Site "Stiga Sports Arena, Arenatorget 1, Eskilstuna, Sweden, Sweden"]
[Date "2019.07.09"]
[Round "2.4"]
[White "Dingertz, Erik"]
[Black "Johansson-Ohman, Daniel"]
[Result "1-0"]
[TimeControl "90 minutes for 40 moves + 30 minutes for the rest of the game + 30 seconds per move from move one"]
[WhiteFideId "1741578"]
[BlackFideId "1736361"]
[WhiteElo "1959"]
[BlackElo "1825"]

1. c4 {[%clk 01:30:56]} {[%emt 00:00:03]} e5 {[%clk 01:30:54]} {[%emt
00:00:07]} 2. g3 {[%clk 01:31:22]} {[%emt 00:00:03]} Nc6 {[%clk 01:31:07]}
{[%emt 00:00:17]} 3. Bg2 {[%clk 01:31:34]} {[%emt 00:00:17]} f5 {[%clk
01:30:51]} {[%emt 00:00:48]} 4. Nc3 {[%clk 01:31:52]} {[%emt 00:00:11]} Nf6
{[%clk 01:31:13]} {[%emt 00:00:09]} 5. d3 {[%clk 01:32:14]} {[%emt 00:00:08]}
g6 {[%clk 01:30:35]} {[%emt 00:01:08]} 6. a3 {[%clk 01:31:24]} {[%emt
00:01:20]} Bg7 {[%clk 01:27:13]} {[%emt 00:03:53]} 7. Rb1 {[%clk 01:29:36]}
{[%emt 00:02:17]} O-O {[%clk 01:21:52]} {[%emt 00:05:51]} 8. b4 {[%clk
01:29:40]} {[%emt 00:00:25]} Ne7 {[%clk 01:20:15]} {[%emt 00:02:08]} 9. Nf3
{[%clk 01:29:46]} {[%emt 00:00:24]} d6 {[%clk 01:19:42]} {[%emt 00:01:03]} 10.
Qb3 {[%clk 01:29:15]} {[%emt 00:01:00]} Kh8 {[%clk 01:18:17]} {[%emt 00:01:56]}
11. c5 {[%clk 01:24:00]} {[%emt 00:05:45]} dxc5 {[%clk 00:58:31]} {[%emt
00:20:16]} 12. Nxe5 {[%clk 01:23:03]} {[%emt 00:01:26]} Ne8 {[%clk 00:36:31]}
{[%emt 00:22:31]} 13. Nf3 {[%clk 01:21:12]} {[%emt 00:02:21]} cxb4 {[%clk
00:35:55]} {[%emt 00:01:07]} 14. axb4 {[%clk 01:19:59]} {[%emt 00:01:42]} Nd6
{[%clk 00:29:50]} {[%emt 00:06:35]} 15. O-O {[%clk 01:16:21]} {[%emt 00:04:08]}
Nc6 {[%clk 00:29:38]} {[%emt 00:00:42]} 16. Bg5 {[%clk 01:12:01]} {[%emt
00:04:48]} Qd7 {[%clk 00:25:42]} {[%emt 00:04:28]} 17. Rfc1 {[%clk 01:09:15]}
{[%emt 00:03:15]} Ne5 {[%clk 00:18:28]} {[%emt 00:07:45]} 18. Bf4 {[%clk
01:07:32]} {[%emt 00:02:13]} Nxf3+ {[%clk 00:18:18]} {[%emt 00:00:40]} 19. Bxf3
{[%clk 01:07:54]} {[%emt 00:00:06]} c6 {[%clk 00:18:36]} {[%emt 00:00:13]} 20.
b5 {[%clk 00:58:54]} {[%emt 00:09:30]} Nxb5 {[%clk 00:18:38]} {[%emt 00:00:29]}
21. Nxb5 {[%clk 00:58:53]} {[%emt 00:00:30]} cxb5 {[%clk 00:19:04]} {[%emt
00:00:04]} 22. Rc7 {[%clk 00:59:00]} {[%emt 00:00:21]} Qd8 {[%clk 00:17:04]}
{[%emt 00:02:31]} 23. Qxb5 {[%clk 00:58:46]} {[%emt 00:00:44]} g5 {[%clk
00:16:43]} {[%emt 00:00:51]} 24. Be5 {[%clk 00:59:04]} {[%emt 00:00:11]} Bxe5
{[%clk 00:16:06]} {[%emt 00:01:08]} 25. Qxe5+ {[%clk 00:59:22]} {[%emt
00:00:11]} Qf6 {[%clk 00:16:33]} {[%emt 00:00:03]} 26. Qxf6+ {[%clk 00:58:11]}
{[%emt 00:01:42]} Rxf6 {[%clk 00:16:57]} {[%emt 00:00:07]} 27. Bxb7 {[%clk
00:58:33]} {[%emt 00:00:08]} Bxb7 {[%clk 00:17:01]} {[%emt 00:00:25]} 28. Rbxb7
{[%clk 00:58:57]} {[%emt 00:00:06]} a5 {[%clk 00:16:52]} {[%emt 00:00:39]} 29.
Rxh7+ {[%clk 00:58:58]} {[%emt 00:00:28]} Kg8 {[%clk 00:17:07]} {[%emt
00:00:16]} 30. Rbg7+ {[%clk 00:59:25]} {[%emt 00:00:03]} Kf8 {[%clk 00:17:06]}
{[%emt 00:00:31]} 31. Rh8+ {[%clk 00:59:51]} {[%emt 00:00:04]} 1-0